Cogmind - Beta 15 @@@ ROGUE MODE // 2025.05.31 @ 16:56:15 Player: Peawet Result: Destroyed by Y-54 Guardian with Gatling Laser Performance ------------- Evolutions (3) 1500 Regions Visited (5) 1000 Robots Destroyed (79) 395 Value Destroyed (2252) 2252 Prototype IDs (4) 80 Alien Tech Used (0) 0 Bonus (67) 67 TOTAL SCORE: 5294 Bonus ------- Follower Combat Kills 67 Cogmind --------- Core Integrity 0/700 Matter 280/300 Energy 140/160 System Corruption 0% Temperature Cool (12) Movement Walking (120) Location -7/Factory Parts ------- > --- POWER (1) -------- Light Nuclear Core > --- PROPULSION (4) --- Aluminum Leg Aluminum Leg Aluminum Leg Aluminum Leg > --- UTILITY (5) ------ Improved Heat Sink Medium Storage Unit Signal Interpreter Weapon Cycler Improved Light Armor Plating > --- WEAPON (3) ------- Axe Axe Blade Saw > --- INVENTORY (10) --- Light Nuclear Core Improved Deuterium Engine Aluminum Leg Aluminum Leg Surge Thruster Reaction Control System Reaction Control System Axe Peak State ------------ > --- POWER ------------ Light Nuclear Core > --- PROPULSION ------- Gravmag System Gravmag System Gravmag System Gravmag System > --- UTILITY ---------- Improved Heat Sink Improved Cooling System Medium Storage Unit Signal Interpreter Energy Filter > --- WEAPON ----------- Improved Spread Laser Particle Cannon Particle Cannon > --- INVENTORY -------- Light Nuclear Core Improved Heat Sink Particle Charger Weapon Cycler Advanced ECM Suite Reaction Control System Reaction Control System Heavy Flail [Rating: 43] Favorites ----------- Power Light Nuclear Core Engine Heavy Ion Engine Power Core Light Nuclear Core Propulsion Aluminum Leg Leg Aluminum Leg Hover Unit Gravmag System Flight Unit Surge Thruster Utility Signal Interpreter Device Improved Heat Sink Storage Medium Storage Unit Processor Signal Interpreter Protection Improved Light Armor Plating Weapon Advanced Beam Cannon Energy Gun Improved Spread Laser Energy Cannon Advanced Beam Cannon Ballistic Gun Gauss Rifle Special Weapon Mining Laser Impact Weapon Heavy Flail Slashing Weapon Axe Build | -11 -10 -10 -9 -8 -7 ------- Run | Yrd Mat Min Mat Mat Fac Slots Evolved 6 | . . . 2 2 2 Power . | . . . . . . Propulsion 2 | . . . 1 . 1 Utility 3 | . . . 1 2 . Weapon 1 | . . . . . 1 Parts Attached 91 | 7 6 . 15 24 39 Power 11 | 1 . . 4 2 4 Engine 5 | 1 . . 3 1 . Core 6 | . . . 1 1 4 Reactor . | . . . . . . Propulsion 36 | 2 . . 7 11 16 Treads . | . . . . . . Leg 25 | 2 . . 6 11 6 Wheel . | . . . . . . Hover 9 | . . . . . 9 Flight 2 | . . . 1 . 1 Utility 24 | 1 1 . 3 8 11 Device 18 | . . . 2 7 9 Storage 3 | 1 . . 1 . 1 Processor 2 | . 1 . . 1 . Hackware . | . . . . . . Protection 1 | . . . . . 1 Artifact . | . . . . . . Weapon 20 | 3 5 . 1 3 8 Energy Gun 4 | 3 . . . . 1 Energy Cannon 9 | . 4 . 1 3 1 Ballistic Gun 1 | . . . . . 1 Ballistic Cannon . | . . . . . . Launcher . | . . . . . . Special Weapon 1 | . 1 . . . . Impact Weapon 1 | . . . . . 1 Slashing Weapon 4 | . . . . . 4 Piercing Weapon . | . . . . . . Special Melee Weapon . | . . . . . . Unidentified Prototypes 4 | . 1 . 2 . 1 Parts Lost 36 | . . . 3 10 23 Power 5 | . . . 1 1 3 Propulsion 11 | . . . . 2 9 Utility 10 | . . . 1 4 5 Weapon 10 | . . . 1 3 6 Highest Loss Streak 14 | . . . 2 3 14 To Critical Strikes . | . . . . . . Average Backups 8 | 1 3 8 8 9 7 Power . | . 1 1 . . . Propulsion . | . . . . . 1 Utility 3 | . . 1 2 3 4 Weapon 3 | . 2 6 4 3 1 Tool/Special . | . . . . . . Unused Backups 10 | . . . 1 2 7 Power 1 | . . . . . 1 Propulsion 1 | . . . . . 1 Utility 4 | . . . . 1 3 Weapon 4 | . . . 1 1 2 Tool/Special . | . . . . . . Average Slot Usage (%) 94 | . 90 100 96 97 88 Engine 6 | . 14 14 9 7 . Core 2 | . . . 1 1 6 Leg 20 | . 28 28 30 26 5 Hover 5 | . . . . . 16 Device 13 | . . . 10 17 17 Storage 9 | . 14 14 11 9 7 Processor 13 | . 5 14 11 18 11 Energy Gun 1 | . 19 . . . 2 Energy Cannon 16 | . 6 28 22 17 10 Slashing Weapon 1 | . . . . . 3 Peak Build Rating 43 | 6 12 12 19 30 43 Average Rating 22 | 4 7 12 15 24 32 On Entrance 11 | . 6 12 12 17 23 Naked Turns . | . . . . . . Heaviest Build 33 | 12 16 16 27 28 33 Greatest Support 45 | 20 20 20 30 45 40 Greatest Overweight (x) 8 | . . . 1 1 8 Average Overweight (x) . | . . . . . . Largest Inventory Capacity 10 | 8 8 8 10 10 10 Average Capacity 9 | 6 8 8 9 10 10 Most Carried 10 | 2 8 8 10 10 10 Average Carried 8 | 1 3 8 8 9 7 Final Capacity 10 | 8 8 8 10 10 10 Final Carried 10 | 2 8 8 10 9 8 Class Distribution -------------------- 43% | Scavenger-Mutant 40% | Mutant 8% | Scavenger-Gunner 8% | Gunner Dominant Class ---------------- Mutant | -10/Materials Mutant | -10/Mines Scavenger-Mutant | -9/Materials Scavenger-Mutant | -8/Materials Scavenger-Mutant | -7/Factory Resources | -11 -10 -10 -9 -8 -7 ----------- Run | Yrd Mat Min Mat Mat Fac Matter Collected 1265 | 216 17 35 330 296 371 Remotely . | . . . . . . Salvage Created 3132 | . 146 36 620 1226 1104 Parts 145 | . 6 2 45 51 41 Haulers Intercepted 7 | . . . 3 3 1 Recyclers Shooed 1 | . . . 1 . . Parts Field Recycled . | . . . . . . Retrieved Matter . | . . . . . . Parts Self-Destructed . | . . . . . . Prevented . | . . . . . . Kills | -11 -10 -10 -9 -8 -7 ------- Run | Yrd Mat Min Mat Mat Fac Combat Hostiles Destroyed 53 | . 2 2 10 23 16 Melee 5 | . . . . . 5 Guns 3 | . 1 . . . 2 Cannons 41 | . . 2 10 22 7 Classes Destroyed 14 | . 3 1 5 . 5 Worker 1 | . . . . . 1 Builder 1 | . . . 1 . . Tunneler 1 | . 1 . . . . Hauler 7 | . . . 3 3 1 Recycler 7 | . 1 . 1 1 4 Operator 2 | . . . 2 . . Watcher 7 | . . . 3 3 1 Swarmer 14 | . . 2 6 6 . Cutter 1 | . . . . . 1 Grunt 29 | . 2 . . 15 12 Sentry 6 | . . . 4 2 . Hunter 1 | . . . . . 1 Programmer 1 | . . . . . 1 Heavy 1 | . . . . . 1 Best Kill Streak 8 | . 4 2 8 6 8 Combat Bots Only 6 | . 2 2 3 6 4 Max Kills in Single Turn 2 | . 1 1 2 1 2 Gunslinging . | . . . . . . Exploded . | . . . . . . Melee 1 | . . . . . 1 Uniques/NPCs Destroyed . | . . . . . . Combat | -11 -10 -10 -9 -8 -7 -------- Run | Yrd Mat Min Mat Mat Fac Hostile Shots Fired 534 | . 8 11 86 223 206 Missed 145 | . 5 4 13 71 52 Hits 389 | . 3 7 73 152 154 Melee 1 | . . . . . 1 Projectile 388 | . 3 7 73 152 153 AOE 1 | . . . . . 1 Critical Strikes 10 | . . 1 . 3 6 Damage Taken 5468 | . 32 50 799 2010 2577 Core 1447 | . 11 . 272 457 707 Absorbed by Shields . | . . . . . . Regen/Repaired (Parts) 203 | . . . . 203 . Core Remaining (%) 60 | 100 . 95 32 16 . Volleys Fired 207 | . 10 4 42 110 41 Largest 3 | . 2 2 2 2 3 Hottest 211 | . 100 136 136 136 211 Shots Fired 417 | . 19 8 80 219 91 Gun 41 | . 18 . . . 23 Cannon 375 | . . 8 80 219 68 Launcher . | . . . . . . Special 1 | . 1 . . . . Kinetic 4 | . . . . . 4 Thermal 413 | . 19 8 80 219 87 Explosive . | . . . . . . Electromagnetic . | . . . . . . Robot Hit Streak 10 | . 5 6 5 10 10 Robot Miss Streak 9 | . 1 2 8 9 5 Penetration Max . | . . . . . . Secondary Targets . | . . . . . . Shots Hit Robots 273 | . 11 3 31 133 95 Core Hits 119 | . 5 2 19 49 44 Critical Kills 1 | . . . 1 . . Critical Parts Destroyed . | . . . . . . Critical Strikes 4 | . 1 . 1 . 2 Burn 1 | . 1 . . . . Meltdown 1 | . . . 1 . . Sever 2 | . . . . . 2 Melee Attacks 35 | . . . . . 35 Impact 8 | . . . . . 8 Slashing 27 | . . . . . 27 Piercing . | . . . . . . Sneak Attacks 4 | . . . . . 4 Combat Hostiles . | . . . . . . Follow-up Attacks 4 | . . . . . 4 Damage Inflicted 6592 | . 142 61 742 2882 2765 Guns 660 | . 142 . . . 518 Cannons 4658 | . . 61 742 2868 987 Explosions . | . . . . . . Melee 1246 | . . . . . 1246 Ramming 28 | . . . . 14 14 Kinetic 79 | . . . . . 79 Thermal 5239 | . 142 61 742 2868 1426 Explosive . | . . . . . . Electromagnetic . | . . . . . . Impact 354 | . . . . . 354 Slashing 892 | . . . . . 892 Piercing . | . . . . . . Highest Corruption . | . . . . . . Average Corruption . | . . . . . . Corruption Purged . | . . . . . . Corruption Blocked . | . . . . . . Overload Shots . | . . . . . . Overflow Damage 263 | . . . 1 34 228 Projectiles 66 | . . . 1 34 31 Explosions . | . . . . . . Melee 197 | . . . . . 197 Knockbacks 6 | . . . . 1 5 Impact 4 | . . . . 1 3 Kinetic . | . . . . . . Secondary 2 | . . . . . 2 Self-Inflicted Damage 7 | . . . . . 7 Shots . | . . . . . . Rammed 1 | . . . . . 1 Targets Rammed 2 | . . . . 1 1 Kicked 1 | . . . . 1 . Crushed . | . . . . . . Highest Temperature 782 | . 210 225 782 333 443 Average Temperature 137 | . 117 108 221 69 130 Received Heat Transfer 1986 | . 18 . 27 945 996 Effects 28 | . . 1 25 1 1 Shutdowns 5 | . . . 5 . . Energy Bleed 6 | . . 1 5 . . Interference 3 | . . . 2 . 1 Matter Decay 5 | . . . 4 1 . Short Circuit 2 | . . . 2 . . Damage (minor) 3 | . . . 3 . . Damage (major) 1 | . . . 1 . . Damage (core) 3 | . . . 3 . . Siege Activations . | . . . . . . Martial Activations . | . . . . . . Shielding Activations . | . . . . . . Robots Disrupted . | . . . . . . Combat Hostiles . | . . . . . . Robots Corrupted 3 | . . . . . 3 Combat Hostiles 2 | . . . . . 2 Parts Fried 3 | . . . . . 3 Impact Corruptions 5 | . . . . . 5 Robots Melted 3 | . 1 . 1 1 . Combat Hostiles 2 | . 1 . . 1 . Parts Melted 18 | . 3 . 4 9 2 Heat Transferred 9180 | . 458 111 1332 5180 2099 Parts Sabotaged . | . . . . . . Parts Stolen . | . . . . . . Parts Stripped . | . . . . . . Power Chain Reactions . | . . . . . . Alert | -11 -10 -10 -9 -8 -7 ------- Run | Yrd Mat Min Mat Mat Fac Maximum Alert Level 1 | . . . 1 1 . Low Security (%) 91 | 100 100 100 92 78 100 Level 1 8 | . . . 7 21 . Level 2 . | . . . . . . Level 3 . | . . . . . . Level 4 . | . . . . . . Level 5 . | . . . . . . High Security . | . . . . . . Max Security . | . . . . . . Peak Influence 253 | . 45 45 214 253 157 Initial 106 | . . 5 . 45 106 Average 89 | . 18 16 114 115 75 Influence Increases 1838 | . 65 50 465 694 564 Destroy 0b10 Robot/C 1120 | . 40 40 260 460 320 Destroy 0b10 Robot/NC 130 | . 10 . 50 35 35 Destroy Leader 268 | . . 10 82 102 74 Allied During Kill 21 | . . . 21 . . Successful Hack 18 | . . . 6 . 12 Disable Machine 90 | . 15 . 45 . 30 Destroy Structure 11 | . . . 1 7 3 Lose Combat Pursuer 180 | . . . . 90 90 Influence Decreases 1725 | . 50 65 356 568 686 Entered New Map 203 | . . 10 . 64 129 Time Decay 1142 | . 50 55 266 404 367 Lost Part 320 | . . . 30 100 190 Lost Ally 60 | . . . 60 . . Squads Dispatched 13 | . 1 . . 4 8 Investigation 4 | . . . . 2 2 Extermination 2 | . . . . . 2 Reinforcement 7 | . 1 . . 2 4 Assault . | . . . . . . Garrison . | . . . . . . Intercept . | . . . . . . Searches Triggered . | . . . . . . Construction Impeded 2 | . . . . 1 1 Haulers Reinforced . | . . . . . . Active Scanning Responses . | . . . . . . Cargo Convoy Interrupts . | . . . . . . Stealth | -11 -10 -10 -9 -8 -7 --------- Run | Yrd Mat Min Mat Mat Fac Distress Signals 8 | . . . 4 2 2 Communications Jammed . | . . . . . . Distress Signals . | . . . . . . Times Spotted 101 | . 3 3 25 39 31 Peak Tracking Total 7 | . 2 2 5 7 6 Tactical Retreats 10 | . . . . 4 6 Traps | -11 -10 -10 -9 -8 -7 ------- Run | Yrd Mat Min Mat Mat Fac Traps Triggered . | . . . . . . Indirectly . | . . . . . . Trap Hack Attempts . | . . . . . . Triggered . | . . . . . . Disarmed . | . . . . . . Reprogrammed . | . . . . . . Reused . | . . . . . . Traps Extracted . | . . . . . . Installed . | . . . . . . Triggered . | . . . . . . Machines | -11 -10 -10 -9 -8 -7 ---------- Run | Yrd Mat Min Mat Mat Fac Machines Disabled 7 | . 1 . 4 . 2 Max in Single Turn 1 | . 1 . 1 . 1 Machines Repaired . | . . . . . . Machines Dismantled . | . . . . . . Machines Sabotaged . | . . . . . . Overloaded Fab Kills . | . . . . . . Hacking | -11 -10 -10 -9 -8 -7 --------- Run | Yrd Mat Min Mat Mat Fac Machines Accessed 8 | . . . 1 5 2 Terminals 5 | . . . 1 3 1 Fabricators . | . . . . . . Repair Stations 2 | . . . . 1 1 Recycling Units . | . . . . . . Scanalyzers 1 | . . . . 1 . Garrison Access . | . . . . . . Total Hacks 22 | . . . 1 12 9 Successful 8 | . . . 1 6 1 Failed 14 | . . . . 6 8 Catastrophic 2 | . . . . 2 . Database Lockouts . | . . . . . . Manual 4 | . . . 1 3 . Terminals 11 | . . . 1 6 4 Fabricators . | . . . . . . Repair Stations 10 | . . . . 5 5 Recycling Units . | . . . . . . Scanalyzers 1 | . . . . 1 . Garrison Access . | . . . . . . Terminal Hacks 2 | . . . 1 1 . Zone Layout 2 | . . . 1 1 . Fabricator Hacks . | . . . . . . Repair Station Hacks 6 | . . . . 5 1 Scan Component 4 | . . . . 3 1 Repair 2 | . . . . 2 . Recycling Unit Hacks . | . . . . . . Scanalyzer . | . . . . . . Garrison Access Hacks . | . . . . . . Unauthorized Hacks . | . . . . . . Terminals . | . . . . . . Fabricators . | . . . . . . Repair Stations . | . . . . . . Recycling Units . | . . . . . . Scanalyzers . | . . . . . . Garrison Access . | . . . . . . Data Cores Recovered 1 | . . . 1 . . Used . | . . . . . . Hacking Detections 6 | . . . . 4 2 Full Trace Events 5 | . . . . 3 2 Feedback Events . | . . . . . . Feedback Blocked . | . . . . . . Robot Schematics Acquired . | . . . . . . Robots Built . | . . . . . . Authchips . | . . . . . . Time . | . . . . . . Total Robot Build Rating . | . . . . . . Part Schematics Acquired . | . . . . . . Parts Built . | . . . . . . Authchips . | . . . . . . Time . | . . . . . . Total Part Build Rating . | . . . . . . Parts Repaired 2 | . . . . 2 . Time 89 | . . . . 89 . Parts Recycled . | . . . . . . Recycled Matter . | . . . . . . Retrieved Matter . | . . . . . . Retrieved Components . | . . . . . . Parts Scanalyzed . | . . . . . . Part Schematics Acquired . | . . . . . . Parts Damaged . | . . . . . . Bothacking | -11 -10 -10 -9 -8 -7 ------------ Run | Yrd Mat Min Mat Mat Fac Used RIF Installer . | . . . . . . Robots Hacked . | . . . . . . Non-combat . | . . . . . . Combat . | . . . . . . Robot Hacks Applied . | . . . . . . Relay Couplers Released . | . . . . . . Fabnet Peak Effective % . | . . . . . . Robots Rewired . | . . . . . . Allies Hacked . | . . . . . . Hacks Repelled . | . . . . . . Allies | -11 -10 -10 -9 -8 -7 -------- Run | Yrd Mat Min Mat Mat Fac Total Allies 3 | . . 3 . . . Largest Group 3 | . . 3 3 . . Highest-Rated Group 40 | . . 40 40 . . Highest-Rated Ally 16 | . . 16 16 . . Total Orders . | . . . . . . Ally Attacks 15 | . . . 15 . . Total Damage 217 | . . . 217 . . Kills 3 | . . . 3 . . Allies Corrupted . | . . . . . . Allies Melted . | . . . . . . Intel | -11 -10 -10 -9 -8 -7 ------- Run | Yrd Mat Min Mat Mat Fac Active Infowar (turns) 301 | . . . 264 . 37 Sensors 264 | . . . 264 . . ECM 37 | . . . . . 37 Robot Analysis Total . | . . . . . . Derelict Logs Recovered 2 | . . 2 . . . Drone Launches . | . . . . . . Drone Recoveries . | . . . . . . Exploration | -11 -10 -10 -9 -8 -7 ------------- Run | Yrd Mat Min Mat Mat Fac Turns Passed 2845 | 67 144 173 598 976 887 Spaces Moved 1624 | 48 75 130 336 399 636 Core 15 | 3 . . . . 12 Treads . | . . . . . . Legs 1082 | 45 75 130 336 399 97 Wheels . | . . . . . . Hover 527 | . . . . . 527 Flight . | . . . . . . Fastest Speed 48 | 50 120 120 120 120 48 Average Speed 109 | 115 120 120 126 120 88 Slowest Speed 450 | 120 120 120 190 190 450 Overloaded Moves . | . . . . . . Propulsion Burnouts . | . . . . . . Robots Hopped . | . . . . . . Potential Cave-ins . | . . . . . . Cave-ins Triggered . | . . . . . . Exploration Rate (%) 27 | 3 18 40 50 33 19 Regions Visited 5 Branch Regions 1 Pre-discovered Areas . | . . . . . . Known Exits Taken 4 | . 1 1 1 1 . Unknown Exits Taken 1 | 1 . . . . . Scrap Searched . | . . . . . . Spaces Dug . | . . . . . . Terrain Destroyed . | . . . . . . Melee . | . . . . . . Projectile . | . . . . . . AOE . | . . . . . . Terrain Rammed . | . . . . . . Walls Destroyed . | . . . . . . Machines Disabled . | . . . . . . Actions | -11 -10 -10 -9 -8 -7 --------- Run | Yrd Mat Min Mat Mat Fac Total 2233 | 56 105 139 430 677 826 Wait 204 | . 8 6 14 124 52 Move 1619 | 47 74 129 335 398 636 Hop . | . . . . . . Pick Up 41 | 2 6 . 11 6 16 Fast Attach 29 | 6 1 . 2 8 12 Attach 24 | . . . 3 6 15 Detach . | . . . . . . Swap 44 | 1 5 . 11 12 15 Drop 35 | . 1 . 12 12 10 Fire 207 | . 10 4 42 110 41 Melee 28 | . . . . . 28 Ram 1 | . . . . . 1 Kick 1 | . . . . 1 . Crush . | . . . . . . Escape Stasis . | . . . . . . Rewire . | . . . . . . Trap . | . . . . . . Miscellaneous . | . . . . . . Route ------- -11/Scrapyard -10/Materials -10/Mines -9/Materials (discovered 3 exits: *Mat / *Min x2) -8/Materials -7/Factory History --------- Turn | Location | Event 26 | -11/Scrapyard | Discovered new exit (range 14) 68 | -11/Scrapyard | Entered Materials 169 | -10/Materials | Discovered new exit (range 12) 211 | -10/Materials | Identified exit to Mines 212 | -10/Materials | Entered Mines 247 | -10/Mines | Met a Derelict bent on vengeance 308 | -10/Mines | Build established: Mutant 338 | -10/Mines | Discovered new exit (range 16) 345 | -10/Mines | Learned location of 1 exit from Materials 356 | -10/Mines | Learned Materials emergency access door positions 357 | -10/Mines | Assisted by bots powering up and referring to "LRC-V3" 375 | -10/Mines | Assembled infested the area 376 | -10/Mines | Identified exit to Materials 380 | -10/Mines | Assisted by a Guerilla fighting off Assembled 385 | -10/Mines | Entered Materials 385 | -9/Materials | Accompanied by 3 allies 385 | -9/Materials | Evolved 2 slots: Propulsion x1, Utility x1 386 | -9/Materials | Identified exit to Mines 576 | -9/Materials | Discovered exit to Mines (range 9) 641 | -9/Materials | Core integrity fell below 50% 950 | -9/Materials | Build established: Scavenger-Mutant 971 | -9/Materials | Discovered new exit (range 10) 981 | -9/Materials | Identified exit to Materials 983 | -9/Materials | Entered another Materials area 983 | -8/Materials | Evolved 2 slots: Utility x2 1612 | -8/Materials | Core integrity fell below 50% 1685 | -8/Materials | Lost 3 parts (2u1w) 1751 | -8/Materials | Repaired Adv. Beam Cannon 1772 | -8/Materials | Build established: Mutant 1791 | -8/Materials | Repaired Carbon-fiber Leg 1876 | -8/Materials | Core integrity fell below 20% 1915 | -8/Materials | Lost 3 parts (1n1u1w) 1942 | -8/Materials | Discovered new exit (range 12) 1958 | -8/Materials | Identified exit to Factory 1959 | -8/Materials | Entered Factory 1959 | -7/Factory | Evolved 2 slots: Propulsion x1, Weapon x1 2124 | -7/Factory | Lost 5 parts (1p3n1w) 2565 | -7/Factory | Core integrity fell below 50% 2592 | -7/Factory | Core integrity fell below 20% 2615 | -7/Factory | Lost 14 parts (2p5n3u4w) 2846 | -7/Factory | Destroyed by Y-54 Guardian with Gatling Laser Last Messages --------------- 02789_ Acquired 26 matter. 02789_ K-01 Serf collects debris. 02792_ Acquired Aluminum Leg. 02793_ K-01 Serf collects debris. 02795_ Acquired Imp. Heat Sink. 02797_ K-01 Serf collects debris. 02797_ Acquired 14 matter. 02801_ K-01 Serf collects debris. 02804_ R-06 Scavenger collects Com. Wheel. 02804_ Acquired Blade Saw. 02806_ R-06 Scavenger collects Sml. Storage Unit. 02808_ K-01 Serf collects debris. 02808_ R-06 Scavenger collects Lgt. Ion Engine. 02811_ K-01 Serf collects debris. 02812_ R-06 Scavenger collects Com. Wheel. 02835_ Y-54 Guardian Imp. Light Armor Plating severed. 02835_ Hvy. Flail follow-up attack on Y-54 Guardian. 02837_ Hvy. Flail destroyed. 02837_ Imp. Heat Sink destroyed. 02842_ Acquired Imp. Light Armor Plating. Map ----- +----------------------------------------------------+ | ????????????????????????????????????????########?? | | ????????????????????????????????????????# #?? | | ???????????????????????????############## ### | | ???????????????????????????# # ## | | ???????????????????????????# # ## | | ???????????????###########?# "" """ # ## | | ???????????????# #?# "" """ # ## | | ???????????????# #?# """ """ # ## | | ???????????????# ### %% "" "" # ## | | ???????????????# % %###%% " "" # ## | | ???????????????# " %%%/%%% # ## | | ???????????????# %% ###% ! # ## | | ???????????????# ### % !! # ## | | ???????????????# ### !! + ## | | ???????????????# = % ### % ! # ## | | ???????????????### ###########+#######+####### | | ?????????????????# ####????# | | ?????????????????# ######### | | ?????????????????# ## # | | ?????????????????# ## "" # | | ?????????????????# ## "" # !% | | ????????????????## ## T" ####"############## | | ????????????????# # "" # [=! #????????? | | ????????????##### # "" # #????????? | | ???????? u o a Y# # #????????? | | ??????? pY@ # #????????? | | ??????? # # #????????? | | ????????######### # # #????????? | | ????????????????# # """ # #????????? | | ????????????????### ### """ # #????????? | | ??????????????????# #?# """ # #????????? | | ??????????????????# #?# ##########????????? | | ??????????????????# #?########?????????????????? | | ??????????????????# #??????????????????????????? | | ?????????????????? ??????????????????????????? | | ?????????????????# ??????????????????????????? | | ?????????????????+ ???????????????????????????? | | ?????????????????# ???????????????????????????? | | ??????????????????? ????????????????????????????? | | ?????????????????????????????????????????????????? | | ?????????????????????????????????????????????????? | | ?????????????????????????????????????????????????? | | ?????????????????????????????????????????????????? | | ?????????????????????????????????????????????????? | | ?????????????????????????????????????????????????? | | ?????????????????????????????????????????????????? | | ?????????????????????????????????????????????????? | | ?????????????????????????????????????????????????? | | ?????????????????????????????????????????????????? | | ?????????????????????????????????????????????????? | +----------------------------------------------------+ Best States ------------- Heat Dissipation 75 Energy Generation 14 Energy Capacity 280 Matter Stores 300 Matter Capacity 300 Sight Range 16 Robot Scan Range 14 Terrain Scan Density 10 ECM Strength 2 Weapon Cycling 15 Evasion (%) 55 Energy Filtering 30 Particle Charging 15 Salvage Targeting 1 Item Schematics ----------------- None Robot Schematics ------------------ None Fabricated ------------ Nothing Repaired ---------- Adv. Beam Cannon | 11% | -8/Materials Carbon-fiber Leg | 20% | -8/Materials Alien Tech Used ----------------- None Achievements -------------- None Challenges ------------ None Game ------ Seed DecoderEncryptedMinigun Manual? 0 Play Time 00:32:04 Cumulative 25.4 hours Start 2025.05.30 @ 14:11:34 End 2025.05.31 @ 16:56:15 Sessions 3 Manual Loads 0 Difficulty Rogue Special Mode None Game No. 48 Rogue 48 Adventurer 0 Explorer 0 Win Type - Total 0 Types 0/0/0/0/0/0/0/0/0/0 Lore% 19 Gallery% 33 Achievement% 29 Wizard Run 0 Options --------- Layout 0 ASCII 0 Keyboard 0 Movement Mouse Keybinds 0 Fullscreen 1 Font 18/SmallcapsGlow Map View 38x25 Zoom Use 34% Tactical HUD 1 Map Filters NONE Filters NONE Steam 1 RUN: 36c4a867-d15b-4b48-bbd5-a67434295ba8